fUST/lending_fUST_20250627
["ID","MTS","AMOUNT","RATE_DAILY","PERIOD"]
[368127917,1751033440388,-460.0,0.00019452,2]
[368127919,1751033440397,-460.0,0.00019452,2]
[368127920,1751033440407,-460.0,0.00019452,2]
[368127921,1751033440416,-460.0,0.00019452,2]
[368127922,1751033440425,-460.0,0.00019452,2]
[368127923,1751033440434,-460.0,0.00019452,2]
[368127924,1751033440443,-460.0,0.00019452,2]
[368127925,1751033440452,-460.0,0.00019452,2]
[368127926,1751033440461,-460.0,0.00019452,2]
[368127927,1751033440471,-460.0,0.00019452,2]
[368127928,1751033440481,-460.0,0.00019452,2]
[368127929,1751033440490,-506.55491528,0.00019452,2]
[368127930,1751033440499,-460.0,0.00019452,2]
[368127931,1751033440509,-460.0,0.00019452,2]
[368127932,1751033440519,-460.0,0.00019452,2]
[368127933,1751033440528,-460.0,0.00019452,2]
[368127934,1751033440537,-523.34,0.00019452,2]
[368127935,1751033440547,-605.55,0.00019452,2]
[368127936,1751033440556,-1230.05,0.00019452,2]
[368127937,1751033440565,-460.0,0.00019452,2]
[368127938,1751033440574,-460.0,0.00019452,2]
[368127939,1751033440583,-460.0,0.00019452,2]
[368127940,1751033440593,-460.0,0.00019452,2]
[368127941,1751033440602,-561.88,0.00019452,2]
[368127943,1751033440612,-2534.93,0.00019452,2]
[368127945,1751033440621,-460.0,0.00019452,2]
[368127947,1751033440631,-460.0,0.00019452,2]
[368127949,1751033440640,-460.0,0.00019452,2]
[368127951,1751033440650,-460.0,0.00019452,2]
[368127963,1751033440792,-679.58,0.00019452,2]
[368127964,1751033440803,-460.0,0.00019452,2]
[368127965,1751033440813,-460.0,0.00019452,2]
[368127966,1751033440823,-460.0,0.00019452,2]
[368127967,1751033440833,-460.0,0.00019452,2]
[368127968,1751033440842,-794.12,0.00019452,2]
[368127969,1751033440851,-460.0,0.00019452,2]
[368127970,1751033440860,-460.0,0.00019452,2]
[368127971,1751033440870,-2482.73,0.00019452,2]
[368127972,1751033440879,-1022.87,0.00019452,2]
[368127973,1751033440888,-476.22,0.00019452,2]
[368127974,1751033440898,-530.51,0.00019452,2]
[368127975,1751033440907,-460.0,0.00019452,2]
[368127976,1751033440916,-460.0,0.00019452,2]
[368127977,1751033440926,-460.0,0.00019452,2]
[368127978,1751033440935,-460.0,0.00019452,2]
[368127979,1751033440944,-460.0,0.00019452,2]
[368127980,1751033440954,-460.0,0.00019452,2]
[368127981,1751033440964,-460.0,0.00019452,2]
[368127982,1751033440975,-460.0,0.00019452,2]
[368127983,1751033440984,-460.0,0.00019452,2]
[368127984,1751033440994,-1198.43,0.00019452,2]
[368127985,1751033441003,-795.23,0.00019452,2]
[368127986,1751033441014,-460.0,0.00019452,2]
[368127987,1751033441023,-460.0,0.00019452,2]
[368127988,1751033441033,-513.31,0.00019452,2]
[368127989,1751033441044,-460.0,0.00019452,2]
[368127990,1751033441054,-460.0,0.00019452,2]
[368127991,1751033441063,-861.41,0.00019452,2]
[368127992,1751033441076,-2247.86,0.00019452,2]
[368127993,1751033441085,-460.0,0.00019452,2]
[368127994,1751033441094,-1799.16,0.00019452,2]
[368127995,1751033441105,-460.0,0.00019452,2]
[368127996,1751033441115,-460.0,0.00019452,2]
[368127997,1751033441124,-853.43,0.00019452,2]
[368127998,1751033441134,-481.85871375,0.00019452,2]
[368127999,1751033441144,-2113.96,0.00019452,2]
[368128000,1751033441154,-460.0,0.00019452,2]
[368128001,1751033441163,-518.69,0.00019452,2]
[368128002,1751033441173,-456.60758911,0.00019452,2]
[368128003,1751033441182,-460.0,0.00019452,2]
[368128004,1751033441191,-460.0,0.00019452,2]
[368128005,1751033441201,-460.0,0.00019452,2]
[368128006,1751033441210,-460.0,0.00019452,2]
[368128007,1751033441222,-460.0,0.00019452,2]
[368128008,1751033441231,-1589.51,0.00019452,2]
[368128009,1751033441240,-460.0,0.00019724,2]
[368128010,1751033441250,-500.0,0.00019725,2]
[368128011,1751033441259,-383.82736876,0.00019725,2]
[368128012,1751033441269,-468.18059167,0.00019725,2]
[368128013,1751033441278,-500.0,0.00019725,2]
[368128014,1751033441286,-500.0,0.00019725,2]
[368128015,1751033441297,-500.0,0.00019725,2]
[368128016,1751033441306,-500.0,0.00019725,2]
[368128017,1751033441315,-500.0,0.00019725,2]
[368128018,1751033441325,-500.0,0.00019725,2]
[368128019,1751033441334,-305.49120709,0.00019725,2]
[368128020,1751033441344,-616.28094779,0.00019725,2]
[368128021,1751033441354,-494.43542243,0.00019725,2]
[368128022,1751033441363,-500.0,0.00019725,2]
[368128023,1751033441372,-503.99680582,0.00019725,2]
[368128024,1751033441381,-500.0,0.00019725,2]
[368128025,1751033441391,-500.0,0.00019725,2]
[368128026,1751033441400,-361.5,0.00019725,2]
[368128027,1751033441409,-500.0,0.00019725,2]
[368128028,1751033441419,-500.0,0.00019725,2]
[368128029,1751033441428,-500.0,0.00019725,2]
[368128030,1751033441438,-500.0,0.00019725,2]
[368128031,1751033441447,-166.41667518,0.00019725,2]
[368128032,1751033441456,-589.90277001,0.00019726,2]
[368128033,1751033441467,-346.74976442,0.00019726,2]
[368128034,1751033441477,-460.0,0.00019726,2]
[368128035,1751033441487,-460.0,0.00019726,2]
[368128036,1751033441496,-460.0,0.00019726,2]
[368128037,1751033441506,-460.0,0.00019726,2]
[368128038,1751033441515,-460.0,0.00019726,2]
[368128039,1751033441525,-460.0,0.00019726,2]
[368128040,1751033441534,-460.0,0.00019726,2]
[368128041,1751033441543,-523.34,0.00019726,2]
[368128042,1751033441552,-605.55,0.00019726,2]
[368128043,1751033441562,-1230.05,0.00019726,2]
[368128044,1751033441571,-460.0,0.00019726,2]
[368128045,1751033441580,-493.4168238,0.00019726,2]
[368128046,1751033441589,-460.0,0.00019726,2]
[368128047,1751033441599,-460.0,0.00019726,2]
[368128048,1751033441608,-561.88,0.00019726,2]
[368128049,1751033441617,-2534.93,0.00019726,2]
[368128050,1751033441628,-460.0,0.00019726,2]
[368128051,1751033441638,-460.0,0.00019726,2]
[368128052,1751033441647,-460.0,0.00019726,2]
[368128053,1751033441656,-566.92,0.00019726,2]
[368128054,1751033441665,-679.58,0.00019726,2]
[368128055,1751033441675,-349.2238109,0.00019726,2]
[368128056,1751033441684,-460.0,0.00019726,2]
[368128057,1751033441693,-460.0,0.00019726,2]
[368128058,1751033441703,-794.12,0.00019726,2]
[368128059,1751033441712,-460.0,0.00019726,2]
[368128060,1751033441722,-460.0,0.00019726,2]
[368128061,1751033441731,-2482.73,0.00019726,2]
[368128062,1751033441741,-1022.87,0.00019726,2]
[368128063,1751033441750,-476.22,0.00019726,2]
[368128064,1751033441760,-530.51,0.00019726,2]
[368128065,1751033441769,-460.0,0.00019726,2]
[368128066,1751033441779,-460.0,0.00019726,2]
[368128067,1751033441788,-460.0,0.00019726,2]
[368128068,1751033441799,-460.0,0.00019726,2]
[368128069,1751033441809,-460.0,0.00019726,2]
[368128070,1751033441818,-460.0,0.00019726,2]
[368128071,1751033441827,-460.0,0.00019726,2]
[368128072,1751033441836,-1198.43,0.00019726,2]
[368128073,1751033441846,-795.23,0.00019726,2]
[368128074,1751033441855,-460.0,0.00019726,2]
[368128075,1751033441865,-545.07,0.00019726,2]
[368128076,1751033441874,-513.31,0.00019726,2]
[368128077,1751033441883,-460.0,0.00019726,2]
[368128078,1751033441892,-460.0,0.00019726,2]
[368128079,1751033441902,-861.41,0.00019726,2]
[368128080,1751033441911,-2247.86,0.00019726,2]
[368128081,1751033441920,-460.0,0.00019726,2]
[368128082,1751033441929,-1799.16,0.00019726,2]
[368128083,1751033441938,-460.0,0.00019726,2]
[368128084,1751033441947,-460.0,0.00019726,2]
[368128085,1751033441956,-853.43,0.00019726,2]
[368128086,1751033441965,-2113.96,0.00019726,2]
[368128087,1751033441975,-518.69,0.00019726,2]
[368128088,1751033441984,-460.0,0.00019726,2]
[368128089,1751033441994,-460.0,0.00019726,2]
[368128090,1751033442002,-460.0,0.00019726,2]
[368128091,1751033442011,-1589.51,0.00019726,2]
[368128092,1751033442021,-500.0,0.000198,2]
[368128093,1751033442030,-501.09377109,0.000198,2]
[368128094,1751033442039,-1544.07149774,0.00019899,2]
[368128095,1751033442048,-500.0,0.00019941,2]
[368128096,1751033442057,-500.0,0.0001997,2]
[368128097,1751033442069,-151.0,0.00019978,2]
[368128098,1751033442079,-500.0,0.00019983,2]
[368128099,1751033442088,-100000.0,0.0001999,2]
[368128100,1751033442098,-500.0,0.00019999,2]
[368128101,1751033442107,-500.0,0.00019999,2]
[368128102,1751033442117,-460.0,0.0002,2]
[368128103,1751033442126,-460.0,0.0002,2]
[368128104,1751033442137,-460.0,0.0002,2]
[368128105,1751033442148,-460.0,0.0002,2]
[368128106,1751033442158,-460.0,0.0002,2]
[368128107,1751033442168,-460.0,0.0002,2]
[368128108,1751033442177,-523.34,0.0002,2]
[368128109,1751033442185,-605.55,0.0002,2]
[368128110,1751033442194,-1230.05,0.0002,2]
[368128111,1751033442203,-460.0,0.0002,2]
[368128112,1751033442213,-460.0,0.0002,2]
[368128113,1751033442222,-561.88,0.0002,2]
[368128114,1751033442232,-2534.93,0.0002,2]
[368128115,1751033442241,-460.0,0.0002,2]
[368128116,1751033442251,-460.0,0.0002,2]
[368128117,1751033442260,-460.0,0.0002,2]
[368128118,1751033442270,-679.58,0.0002,2]
[368128119,1751033442279,-460.0,0.0002,2]
[368128120,1751033442289,-460.0,0.0002,2]
[368128121,1751033442298,-794.12,0.0002,2]
[368128122,1751033442307,-460.0,0.0002,2]
[368128123,1751033442316,-460.0,0.0002,2]
[368128124,1751033442325,-2482.73,0.0002,2]
[368128125,1751033442334,-1022.87,0.0002,2]
[368128126,1751033442344,-476.22,0.0002,2]
[368128127,1751033442355,-530.51,0.0002,2]
[368128128,1751033442365,-460.0,0.0002,2]
[368128129,1751033442374,-460.0,0.0002,2]
[368128130,1751033442385,-460.0,0.0002,2]
[368128131,1751033442395,-460.0,0.0002,2]
[368128132,1751033442405,-460.0,0.0002,2]
[368128133,1751033442416,-460.0,0.0002,2]
[368128134,1751033442425,-460.0,0.0002,2]
[368128135,1751033442435,-1198.43,0.0002,2]
[368128136,1751033442446,-795.23,0.0002,2]
[368128137,1751033442455,-460.0,0.0002,2]
[368128138,1751033442465,-513.31,0.0002,2]
[368128139,1751033442475,-460.0,0.0002,2]
[368128140,1751033442485,-460.0,0.0002,2]
[368128141,1751033442494,-861.41,0.0002,2]
[368128142,1751033442503,-2247.86,0.0002,2]
[368128143,1751033442513,-460.0,0.0002,2]
[368128144,1751033442522,-1799.16,0.0002,2]
[368128145,1751033442532,-460.0,0.0002,2]
[368128146,1751033442541,-460.0,0.0002,2]
[368128147,1751033442551,-853.43,0.0002,2]
[368128148,1751033442560,-2113.96,0.0002,2]
[368128149,1751033442570,-518.69,0.0002,2]
[368128150,1751033442580,-460.0,0.0002,2]
[368128151,1751033442590,-460.0,0.0002,2]
[368128152,1751033442599,-460.0,0.0002,2]
[368128153,1751033442609,-1589.51,0.0002,2]
[368128154,1751033442618,-500.0,0.00020028,2]
[368128155,1751033442628,-500.0,0.00020028,2]
[368128156,1751033442637,-201.22254143,0.00020029,2]
[368128157,1751033442647,-500.0,0.00020156,2]
[368128158,1751033442656,-500.0,0.00020156,2]
[368128159,1751033442666,-500.0,0.00020156,2]
[368128160,1751033442676,-363.56,0.00020263,3]
[368128161,1751033442685,-727.17,0.00020263,3]
[368128162,1751033442694,-520.57,0.00020272,2]
[368128163,1751033442704,-460.0,0.00020273,2]
[368128164,1751033442713,-460.0,0.00020273,2]
[368128165,1751033442723,-323.52142907,0.00020273,2]
[368128166,1751033442733,-460.0,0.00020273,2]
[368128167,1751033442742,-460.0,0.00020273,2]
[368128168,1751033442752,-523.34,0.00020273,2]
[368128169,1751033442761,-605.55,0.00020273,2]
[368128170,1751033442771,-1230.05,0.00020273,2]
[368128171,1751033442780,-460.0,0.00020273,2]
[368128172,1751033442789,-460.0,0.00020273,2]
[368128173,1751033442799,-561.88,0.00020273,2]
[368128174,1751033442808,-2534.93,0.00020273,2]
[368128175,1751033442818,-460.0,0.00020273,2]
[368128176,1751033442827,-460.0,0.00020273,2]
[368128177,1751033442836,-460.0,0.00020273,2]
[368128178,1751033442846,-679.58,0.00020273,2]
[368128179,1751033442855,-460.0,0.00020273,2]
[368128180,1751033442864,-265.3,0.00020273,2]
[368128181,1751033442874,-794.12,0.00020273,2]
[368128182,1751033442883,-460.0,0.00020273,2]
[368128183,1751033442893,-460.0,0.00020273,2]
[368128184,1751033442903,-2482.73,0.00020273,2]
[368128185,1751033442913,-1022.87,0.00020273,2]
[368128186,1751033442922,-476.22,0.00020273,2]
[368128188,1751033442932,-530.51,0.00020273,2]
[368128189,1751033442941,-460.0,0.00020273,2]
[368128191,1751033442950,-460.0,0.00020273,2]
[368128193,1751033442959,-460.0,0.00020273,2]
[368128195,1751033442969,-460.0,0.00020273,2]
[368128197,1751033442978,-240.71460751,0.00020273,2]
[368128199,1751033442988,-460.0,0.00020273,2]
[368128201,1751033442997,-460.0,0.00020273,2]
[368128203,1751033443006,-1198.43,0.00020273,2]
[368128205,1751033443016,-795.23,0.00020273,2]
[368128207,1751033443026,-460.0,0.00020273,2]
[368128209,1751033443036,-513.31,0.00020273,2]
[368128211,1751033443046,-460.0,0.00020273,2]
[368128213,1751033443055,-460.0,0.00020273,2]
[368128214,1751033443066,-861.41,0.00020273,2]
[368128216,1751033443078,-2247.86,0.00020273,2]
[368128218,1751033443091,-460.0,0.00020273,2]
[368128220,1751033443100,-1799.16,0.00020273,2]
[368128222,1751033443110,-460.0,0.00020273,2]
[368128224,1751033443119,-460.0,0.00020273,2]
[368128226,1751033443129,-853.43,0.00020273,2]
[368128228,1751033443139,-2113.96,0.00020273,2]
[368128230,1751033443149,-518.69,0.00020273,2]
[368128232,1751033443158,-460.0,0.00020273,2]
[368128233,1751033443168,-460.0,0.00020273,2]
[368128234,1751033443177,-460.0,0.00020273,2]
[368128235,1751033443186,-151.0,0.00020301,2]
[368128236,1751033443196,-183.69768728,0.00020301,2]
[368128237,1751033443205,-151.0,0.00020328,2]
[368128238,1751033443215,-198.0,0.00020356,2]
[368128239,1751033443225,-500.0,0.00020518,2]
[368128241,1751033443234,-501.96309613,0.00020521,3]
[368128243,1751033443244,-213.75309343,0.00020521,3]
[368128245,1751033443253,-460.0,0.00020547,2]
[368128247,1751033443262,-460.0,0.00020547,2]
[368128248,1751033443272,-460.0,0.00020547,2]
[368128249,1751033443281,-460.0,0.00020547,2]
[368128250,1751033443291,-523.34,0.00020547,2]
[368128251,1751033443300,-605.55,0.00020547,2]
[368128252,1751033443310,-1230.05,0.00020547,2]
[368128253,1751033443319,-460.0,0.00020547,2]
[368128254,1751033443328,-460.0,0.00020547,2]
[368128255,1751033443337,-561.88,0.00020547,2]
[368128256,1751033443347,-2534.93,0.00020547,2]
[368128257,1751033443357,-460.0,0.00020547,2]
[368128258,1751033443366,-460.0,0.00020547,2]
[368128259,1751033443375,-460.0,0.00020547,2]
[368128260,1751033443384,-679.58,0.00020547,2]
[368128261,1751033443394,-460.0,0.00020547,2]
[368128263,1751033443403,-794.12,0.00020547,2]
[368128265,1751033443413,-460.0,0.00020547,2]
[368128267,1751033443422,-460.0,0.00020547,2]
[368128269,1751033443431,-2482.73,0.00020547,2]
[368128271,1751033443441,-1022.87,0.00020547,2]
[368128273,1751033443451,-476.22,0.00020547,2]
[368128275,1751033443460,-530.51,0.00020547,2]
[368128277,1751033443470,-460.0,0.00020547,2]
[368128279,1751033443480,-460.0,0.00020547,2]
[368128281,1751033443489,-460.0,0.00020547,2]
[368128283,1751033443498,-460.0,0.00020547,2]
[368128285,1751033443508,-460.0,0.00020547,2]
[368128287,1751033443517,-545.62207344,0.00020547,2]
[368128289,1751033443526,-1198.43,0.00020547,2]
[368128291,1751033443536,-795.23,0.00020547,2]
[368128293,1751033443545,-460.0,0.00020547,2]
[368128295,1751033443555,-513.31,0.00020547,2]
[368128297,1751033443564,-460.0,0.00020547,2]
[368128299,1751033443574,-460.0,0.00020547,2]
[368128301,1751033443583,-861.41,0.00020547,2]
[368128303,1751033443593,-2247.86,0.00020547,2]
[368128305,1751033443602,-460.0,0.00020547,2]
[368128307,1751033443612,-1799.16,0.00020547,2]
[368128308,1751033443621,-460.0,0.00020547,2]
[368128310,1751033443632,-460.0,0.00020547,2]
[368128312,1751033443642,-853.43,0.00020547,2]
[368128314,1751033443651,-2113.96,0.00020547,2]
[368128315,1751033443661,-518.69,0.00020547,2]
[368128317,1751033443670,-460.0,0.00020547,2]
[368128319,1751033443679,-460.0,0.00020547,2]
[368128321,1751033443689,-626.04116076,0.00020576,2]
[368128323,1751033443698,-3142.22,0.000206,2]
[368128325,1751033443708,-1544.0714977,0.00020643,2]
[368128326,1751033443717,-1005.13555698,0.00020704,2]
[368128327,1751033443728,-1000.0,0.00020704,2]
[368128328,1751033443737,-460.0,0.00020821,2]
[368128329,1751033443746,-460.0,0.00020821,2]
[368128330,1751033443756,-302.96407043,0.00020821,2]
[368128331,1751033443766,-460.0,0.00020821,2]
[368128332,1751033443775,-523.34,0.00020821,2]
[368128333,1751033443784,-605.55,0.00020821,2]
[368128334,1751033443794,-1230.05,0.00020821,2]
[368128335,1751033443805,-460.0,0.00020821,2]
[368128336,1751033443814,-460.0,0.00020821,2]
[368128337,1751033443823,-561.88,0.00020821,2]
[368128338,1751033443832,-2534.93,0.00020821,2]
[368128339,1751033443842,-460.0,0.00020821,2]
[368128340,1751033443852,-460.0,0.00020821,2]
[368128341,1751033443862,-460.0,0.00020821,2]
[368128342,1751033443871,-679.58,0.00020821,2]
[368128343,1751033443881,-460.0,0.00020821,2]
[368128344,1751033443891,-794.12,0.00020821,2]
[368128345,1751033443900,-460.0,0.00020821,2]
[368128346,1751033443910,-460.0,0.00020821,2]
[368128347,1751033443919,-1022.87,0.00020821,2]
[368128348,1751033443928,-2482.73,0.00020821,2]
[368128349,1751033443938,-476.22,0.00020821,2]
[368128350,1751033443947,-530.51,0.00020821,2]
[368128351,1751033443957,-460.0,0.00020821,2]
[368128352,1751033443967,-460.0,0.00020821,2]
[368128353,1751033443978,-460.0,0.00020821,2]
[368128354,1751033443987,-460.0,0.00020821,2]
[368128355,1751033443997,-460.0,0.00020821,2]
[368128356,1751033444007,-1198.43,0.00020821,2]
[368128357,1751033444017,-795.23,0.00020821,2]
[368128358,1751033444026,-460.0,0.00020821,2]
[368128359,1751033444036,-513.31,0.00020821,2]
[368128360,1751033444045,-460.0,0.00020821,2]
[368128361,1751033444173,-460.0,0.00020821,2]
[368128362,1751033444183,-861.41,0.00020821,2]
[368128363,1751033444192,-2247.86,0.00020821,2]
[368128364,1751033444202,-460.0,0.00020821,2]
[368128365,1751033444211,-1799.16,0.00020821,2]
[368128366,1751033444220,-460.0,0.00020821,2]
[368128367,1751033444230,-460.0,0.00020821,2]
[368128368,1751033444239,-853.43,0.00020821,2]
[368128369,1751033444249,-2113.96,0.00020821,2]
[368128370,1751033444258,-518.69,0.00020821,2]
[368128371,1751033444268,-460.0,0.00020821,2]
[368128372,1751033444277,-460.0,0.00020821,2]
[368128373,1751033444287,-214.91804724,0.00020825,2]
[368128374,1751033444296,-12562.41216491,0.00020825,2]
[368128375,1751033444305,-836.98798914,0.00020825,2]
[368128376,1751033444315,-160.0,0.00020825,2]
[368128377,1751033444324,-230.26210603,0.00020825,2]
[368128378,1751033444333,-160.0,0.00020825,2]
[368128379,1751033444342,-213.75309343,0.00020825,2]
[368128380,1751033444352,-160.0,0.00020825,2]
[368128381,1751033444361,-160.0,0.00020825,2]
[368128382,1751033444371,-160.0,0.00020825,2]
[368128383,1751033444380,-160.0,0.00020825,2]
[368128384,1751033444390,-160.0,0.00020825,2]
[368128385,1751033444399,-6641.82595925,0.000209,4]
[368128386,1751033444409,-6641.82595901,0.00021072,4]
[368128387,1751033444418,-460.0,0.00021095,2]
[368128388,1751033444427,-460.0,0.00021095,2]
[368128389,1751033444437,-460.0,0.00021095,2]
[368128390,1751033444446,-523.34,0.00021095,2]
[368128391,1751033444455,-605.55,0.00021095,2]
[368128392,1751033444466,-1230.05,0.00021095,2]
[368128393,1751033444475,-460.0,0.00021095,2]
[368128394,1751033444485,-460.0,0.00021095,2]
[368128395,1751033444495,-561.88,0.00021095,2]
[368128396,1751033444506,-2534.93,0.00021095,2]
[368128397,1751033444517,-460.0,0.00021095,2]
[368128398,1751033444526,-460.0,0.00021095,2]
[368128399,1751033444535,-460.0,0.00021095,2]
[368128400,1751033444545,-679.58,0.00021095,2]
[368128401,1751033444554,-460.0,0.00021095,2]
[368128402,1751033444563,-794.12,0.00021095,2]
[368128403,1751033444572,-460.0,0.00021095,2]
[368128404,1751033444582,-460.0,0.00021095,2]
[368128405,1751033444592,-2482.73,0.00021095,2]
[368128406,1751033444601,-1022.87,0.00021095,2]
[368128407,1751033444611,-476.22,0.00021095,2]
[368128408,1751033444626,-530.51,0.00021095,2]
[368128409,1751033444636,-460.0,0.00021095,2]
[368128410,1751033444646,-460.0,0.00021095,2]
[368128411,1751033444656,-460.0,0.00021095,2]
[368128412,1751033444665,-460.0,0.00021095,2]
[368128413,1751033444675,-460.0,0.00021095,2]
[368128414,1751033444684,-1198.43,0.00021095,2]
[368128415,1751033444694,-795.23,0.00021095,2]
[368128416,1751033444703,-460.0,0.00021095,2]
[368128417,1751033444713,-513.31,0.00021095,2]
[368128418,1751033444723,-460.0,0.00021095,2]
[368128419,1751033444733,-460.0,0.00021095,2]
[368128420,1751033444743,-861.41,0.00021095,2]
[368128421,1751033444753,-2247.86,0.00021095,2]
[368128422,1751033444762,-460.0,0.00021095,2]
[368128423,1751033444772,-1799.16,0.00021095,2]
[368128424,1751033444782,-460.0,0.00021095,2]
[368128425,1751033444791,-460.0,0.00021095,2]
[368128426,1751033444802,-853.43,0.00021095,2]
[368128427,1751033444812,-2113.96,0.00021095,2]
[368128428,1751033444822,-518.69,0.00021095,2]
[368128429,1751033444832,-460.0,0.00021095,2]
[368128430,1751033444842,-406.0,0.00021097,2]
[368128431,1751033444851,-668.533,0.00021165,2]
[368128432,1751033444861,-6641.82595901,0.00021245,4]
[368128433,1751033444871,-1500.0,0.00021252,2]
[368128434,1751033444880,-460.0,0.00021369,2]
[368128435,1751033444890,-460.0,0.00021369,2]
[368128436,1751033444900,-351.55482047,0.00021369,2]
[368128437,1751033444910,-523.34,0.00021369,2]
[368128438,1751033444919,-605.55,0.00021369,2]
[368128439,1751033444929,-1230.05,0.00021369,2]
[368128440,1751033444938,-460.0,0.00021369,2]
[368128441,1751033444948,-460.0,0.00021369,2]
[368128442,1751033444958,-561.88,0.00021369,2]
[368128443,1751033444967,-2534.93,0.00021369,2]
[368128444,1751033444978,-460.0,0.00021369,2]
[368128445,1751033444987,-460.0,0.00021369,2]
[368128446,1751033444997,-460.0,0.00021369,2]
[368128447,1751033445006,-679.58,0.00021369,2]
[368128448,1751033445016,-460.0,0.00021369,2]
[368128449,1751033445025,-794.12,0.00021369,2]
[368128450,1751033445035,-460.0,0.00021369,2]
[368128451,1751033445044,-460.0,0.00021369,2]
[368128452,1751033445054,-2482.73,0.00021369,2]
[368128453,1751033445063,-1022.87,0.00021369,2]
[368128454,1751033445077,-476.22,0.00021369,2]
[368128455,1751033445087,-530.51,0.00021369,2]
[368128456,1751033445096,-460.0,0.00021369,2]
[368128457,1751033445105,-460.0,0.00021369,2]
[368128458,1751033445115,-460.0,0.00021369,2]
[368128459,1751033445125,-460.0,0.00021369,2]
[368128460,1751033445134,-460.0,0.00021369,2]
[368128461,1751033445144,-1198.43,0.00021369,2]
[368128462,1751033445155,-795.23,0.00021369,2]
[368128463,1751033445165,-460.0,0.00021369,2]
[368128464,1751033445174,-513.31,0.00021369,2]
[368128465,1751033445183,-460.0,0.00021369,2]
[368128466,1751033445192,-460.0,0.00021369,2]
[368128467,1751033445201,-861.41,0.00021369,2]
[368128468,1751033445210,-2247.86,0.00021369,2]
[368128469,1751033445219,-460.0,0.00021369,2]
[368128470,1751033445230,-1799.16,0.00021369,2]
[368128471,1751033445239,-460.0,0.00021369,2]
[368128472,1751033445248,-460.0,0.00021369,2]
[368128473,1751033445258,-853.43,0.00021369,2]
[368128474,1751033445268,-2113.96,0.00021369,2]
[368128475,1751033445277,-518.69,0.00021369,2]
[368128476,1751033445286,-460.0,0.00021369,2]
[368128477,1751033445296,-1544.0714977,0.00021386,2]
[368128478,1751033445305,-6641.82595901,0.00021417,5]
[368128479,1751033445314,-6641.82595901,0.0002159,5]
[368128480,1751033445323,-460.0,0.00021643,2]
[368128481,1751033445332,-460.0,0.00021643,2]
[368128482,1751033445342,-523.34,0.00021643,2]
[368128483,1751033445351,-605.55,0.00021643,2]
[368128484,1751033445360,-1230.05,0.00021643,2]
[368128485,1751033445370,-460.0,0.00021643,2]
[368128486,1751033445380,-460.0,0.00021643,2]
[368128487,1751033445389,-561.88,0.00021643,2]
[368128488,1751033445399,-2534.93,0.00021643,2]
[368128489,1751033445408,-460.0,0.00021643,2]
[368128490,1751033445417,-460.0,0.00021643,2]